[Event "Titled Tuesday Blitz October 25 Early 2022"]
[White "Perez Ponsa, Federico"]
[Black "Maghsoodloo, Parham"]
[WhiteFideId "117927"]
[BlackFideId "12539929"]
[WhiteElo "2604"]
[BlackElo "2676"]
[Result "0-1"]
[Round "04"]
[TimeControl "180+1"]
[Date "2022.10.25"]
[WhiteClock "0:00:10"]
[BlackClock "0:00:15"]

1. e4 {[%clk 0:03:00]}  c5 {[%clk 0:02:59]} 2. Nf3 {[%clk 0:03:01]}  e6 {[%clk 0:02:59]} 3. g3 {[%clk 0:03:01]}  a6 {[%clk 0:02:58]} 4. Bg2 {[%clk 0:03:00]}  b5 {[%clk 0:02:58]} 5. d4 {[%clk 0:02:59]}  cxd4 {[%clk 0:02:59]} 6. Nxd4 {[%clk 0:03:00]}  Bb7 {[%clk 0:02:59]} 7. O-O {[%clk 0:03:01]}  Nc6 {[%clk 0:02:59]} 8. a4 {[%clk 0:02:57]}  Nge7 {[%clk 0:02:42]} 9. Nb3 {[%clk 0:02:50]}  Ng6 {[%clk 0:02:39]} 10. Nc3 {[%clk 0:02:42]}  b4 {[%clk 0:02:38]} 11. Nd5 {[%clk 0:02:34]}  exd5 {[%clk 0:02:30]} 12. exd5 {[%clk 0:02:35]}  Nce5 {[%clk 0:02:30]} 13. f4 {[%clk 0:02:35]}  Bd6 {[%clk 0:02:27]} 14. fxe5 {[%clk 0:02:31]}  Nxe5 {[%clk 0:02:24]} 15. Bf4 {[%clk 0:02:23]}  O-O {[%clk 0:02:24]} 16. Nd4 {[%clk 0:02:16]}  g6 {[%clk 0:01:38]} 17. Kh1 {[%clk 0:02:17]}  f6 {[%clk 0:01:37]} 18. b3 {[%clk 0:02:08]}  Bc5 {[%clk 0:01:35]} 19. Qd2 {[%clk 0:02:05]}  Qb6 {[%clk 0:01:33]} 20. a5 {[%clk 0:01:57]}  Qa7 {[%clk 0:01:31]} 21. Be3 {[%clk 0:01:57]}  Rae8 {[%clk 0:01:29]} 22. Rae1 {[%clk 0:01:56]}  Qa8 {[%clk 0:01:22]} 23. Nf5 {[%clk 0:01:50]}  Bxe3 {[%clk 0:01:19]} 24. Nxe3 {[%clk 0:01:51]}  f5 {[%clk 0:01:04]} 25. Qxb4 {[%clk 0:01:50]}  Qa7 {[%clk 0:00:59]} 26. Qb6 {[%clk 0:01:45]}  Qxb6 {[%clk 0:00:51]} 27. axb6 {[%clk 0:01:46]}  d6 {[%clk 0:00:46]} 28. c4 {[%clk 0:01:43]}  Nd7 {[%clk 0:00:31]} 29. b4 {[%clk 0:01:40]}  Re5 {[%clk 0:00:29]} 30. Nc2 {[%clk 0:01:32]}  Rc8 {[%clk 0:00:25]} 31. Na3 {[%clk 0:01:28]}  Rxe1 {[%clk 0:00:20]} 32. Rxe1 {[%clk 0:01:29]}  Nxb6 {[%clk 0:00:20]} 33. Bf1 {[%clk 0:01:19]}  Kf7 {[%clk 0:00:18]} 34. Kg1 {[%clk 0:01:18]}  Re8 {[%clk 0:00:18]} 35. Rb1 {[%clk 0:01:13]}  Nd7 {[%clk 0:00:16]} 36. b5 {[%clk 0:01:09]}  a5 {[%clk 0:00:16]} 37. b6 {[%clk 0:01:09]}  Ba6 {[%clk 0:00:16]} 38. c5 {[%clk 0:00:49]}  Bxf1 {[%clk 0:00:13]} 39. c6 {[%clk 0:00:50]}  Nxb6 {[%clk 0:00:09]} 40. Rxb6 {[%clk 0:00:50]}  Bd3 {[%clk 0:00:09]} 41. Rb3 {[%clk 0:00:33]}  Be4 {[%clk 0:00:09]} 42. c7 {[%clk 0:00:34]}  Rc8 {[%clk 0:00:08]} 43. Nb5 {[%clk 0:00:33]}  Ke7 {[%clk 0:00:06]} 44. Rc3 {[%clk 0:00:29]}  Kd7 {[%clk 0:00:07]} 45. Rc6 {[%clk 0:00:29]}  Bd3 {[%clk 0:00:04]} 46. Rxd6+ {[%clk 0:00:24]}  Ke7 {[%clk 0:00:05]} 47. Re6+ {[%clk 0:00:11]}  Kd7 {[%clk 0:00:06]} 48. Rd6+ {[%clk 0:00:06]}  Ke7 {[%clk 0:00:06]} 49. Re6+ {[%clk 0:00:06]}  Kf8 {[%clk 0:00:07]} 50. Rb6 {[%clk 0:00:01]}  Bxb5 {[%clk 0:00:07]} 51. Rxb5 {[%clk 0:00:02]}  Rxc7 {[%clk 0:00:08]} 52. Rxa5 {[%clk 0:00:03]}  Ke7 {[%clk 0:00:08]} 53. Ra6 {[%clk 0:00:03]}  Rd7 {[%clk 0:00:09]} 54. Re6+ {[%clk 0:00:04]}  Kf7 {[%clk 0:00:09]} 55. Re5 {[%clk 0:00:04]}  Rd6 {[%clk 0:00:09]} 56. Kg2 {[%clk 0:00:04]}  Kf6 {[%clk 0:00:10]} 57. Re2 {[%clk 0:00:04]}  Rxd5 {[%clk 0:00:10]} 58. Ra2 {[%clk 0:00:05]}  Rd7 {[%clk 0:00:09]} 59. h4 {[%clk 0:00:05]}  Kg7 {[%clk 0:00:08]} 60. Rb2 {[%clk 0:00:06]}  Kh6 {[%clk 0:00:08]} 61. Rc2 {[%clk 0:00:06]}  Kh5 {[%clk 0:00:08]} 62. Rb2 {[%clk 0:00:05]}  Rd4 {[%clk 0:00:07]} 63. Kh3 {[%clk 0:00:03]}  Rd3 {[%clk 0:00:08]} 64. Kg2 {[%clk 0:00:03]}  Re3 {[%clk 0:00:07]} 65. Rc2 {[%clk 0:00:03]}  Kg4 {[%clk 0:00:07]} 66. Rc4+ {[%clk 0:00:04]}  Re4 {[%clk 0:00:08]} 67. Rc3 {[%clk 0:00:03]}  Re2+ {[%clk 0:00:07]} 68. Kf1 {[%clk 0:00:03]}  Rd2 {[%clk 0:00:07]} 69. Ke1 {[%clk 0:00:04]}  Ra2 {[%clk 0:00:06]} 70. Kf1 {[%clk 0:00:04]}  Kh3 {[%clk 0:00:07]} 71. Rd3 {[%clk 0:00:04]}  Kh2 {[%clk 0:00:05]} 72. Rd7 {[%clk 0:00:04]}  h5 {[%clk 0:00:01]} 73. Rg7 {[%clk 0:00:04]}  Ra6 {[%clk 0:00:01]} 74. Kf2 {[%clk 0:00:04]}  Kh3 {[%clk 0:00:02]} 75. Kf3 {[%clk 0:00:05]}  Ra3+ {[%clk 0:00:02]} 76. Kf4 {[%clk 0:00:04]}  Rxg3 {[%clk 0:00:03]} 77. Rd7 {[%clk 0:00:04]}  Rg4+ {[%clk 0:00:04]} 78. Kf3 {[%clk 0:00:05]}  Kxh4 {[%clk 0:00:05]} 79. Rd1 {[%clk 0:00:05]}  Kg5 {[%clk 0:00:06]} 80. Kf2 {[%clk 0:00:06]}  h4 {[%clk 0:00:06]} 81. Kf3 {[%clk 0:00:07]}  Rg3+ {[%clk 0:00:07]} 82. Kf2 {[%clk 0:00:07]}  f4 {[%clk 0:00:08]} 83. Rd5+ {[%clk 0:00:07]}  Kg4 {[%clk 0:00:09]} 84. Rd6 {[%clk 0:00:08]}  g5 {[%clk 0:00:10]} 85. Rd8 {[%clk 0:00:08]}  h3 {[%clk 0:00:10]} 86. Rh8 {[%clk 0:00:08]}  Rg2+ {[%clk 0:00:11]} 87. Kf1 {[%clk 0:00:09]}  Kg3 {[%clk 0:00:12]} 88. Rh7 {[%clk 0:00:09]}  g4 {[%clk 0:00:13]} 89. Rh6 {[%clk 0:00:09]}  f3 {[%clk 0:00:14]} 90. Rh5 {[%clk 0:00:10]}  h2 {[%clk 0:00:15]} 0-1


[Site "https://www.chess.com"]

[Event "Titled Tuesday Blitz October 25 Early 2022"]
[White "Pranav, V"]
[Black "Lewtak, Damian"]
[WhiteFideId "25060783"]
[BlackFideId "1141724"]
[WhiteElo "2430"]
[BlackElo "2329"]
[Result "0-1"]
[Round "04"]
[TimeControl "180+1"]
[Date "2022.10.25"]
[WhiteClock "0:00:02"]
[BlackClock "0:00:06"]

1. e4 {[%clk 0:03:00]}  d5 {[%clk 0:02:58]} 2. exd5 {[%clk 0:03:00]}  Qxd5 {[%clk 0:02:59]} 3. Nc3 {[%clk 0:03:00]}  Qd8 {[%clk 0:03:00]} 4. d4 {[%clk 0:03:00]}  g6 {[%clk 0:02:54]} 5. Nf3 {[%clk 0:02:57]}  Bg7 {[%clk 0:02:53]} 6. Bf4 {[%clk 0:02:58]}  Nf6 {[%clk 0:02:52]} 7. Qd2 {[%clk 0:02:56]}  h6 {[%clk 0:02:47]} 8. O-O-O {[%clk 0:02:55]}  Nc6 {[%clk 0:02:47]} 9. h3 {[%clk 0:02:51]}  Nb4 {[%clk 0:02:45]} 10. Be5 {[%clk 0:02:45]}  c6 {[%clk 0:02:30]} 11. Bc4 {[%clk 0:02:41]}  Nbd5 {[%clk 0:02:29]} 12. Rhe1 {[%clk 0:02:35]}  O-O {[%clk 0:02:25]} 13. Bxd5 {[%clk 0:02:32]}  Nxd5 {[%clk 0:02:18]} 14. Bxg7 {[%clk 0:02:30]}  Kxg7 {[%clk 0:02:19]} 15. Ne5 {[%clk 0:02:30]}  f6 {[%clk 0:02:12]} 16. Nd3 {[%clk 0:02:28]}  Bf5 {[%clk 0:02:05]} 17. Nc5 {[%clk 0:02:24]}  b6 {[%clk 0:01:57]} 18. Ne6+ {[%clk 0:02:14]}  Bxe6 {[%clk 0:01:57]} 19. Rxe6 {[%clk 0:02:15]}  Qd7 {[%clk 0:01:56]} 20. Rde1 {[%clk 0:02:15]}  Rf7 {[%clk 0:01:56]} 21. h4 {[%clk 0:02:08]}  h5 {[%clk 0:01:50]} 22. g3 {[%clk 0:02:07]}  Rd8 {[%clk 0:01:43]} 23. Qe2 {[%clk 0:02:01]}  Kf8 {[%clk 0:01:36]} 24. Qe4 {[%clk 0:01:39]}  f5 {[%clk 0:01:07]} 25. Qe5 {[%clk 0:01:27]}  Rf6 {[%clk 0:01:07]} 26. Nxd5 {[%clk 0:01:15]}  Rxe6 {[%clk 0:01:03]} 27. Qxe6 {[%clk 0:01:14]}  Qxd5 {[%clk 0:00:59]} 28. Qxg6 {[%clk 0:01:11]}  Rd6 {[%clk 0:00:57]} 29. Qxh5 {[%clk 0:01:07]}  Qxd4 {[%clk 0:00:55]} 30. Qe2 {[%clk 0:00:47]}  e5 {[%clk 0:00:52]} 31. Rd1 {[%clk 0:00:35]}  Qc5 {[%clk 0:00:47]} 32. Rxd6 {[%clk 0:00:35]}  Qxd6 {[%clk 0:00:48]} 33. Qh5 {[%clk 0:00:34]}  Qe6 {[%clk 0:00:45]} 34. b3 {[%clk 0:00:32]}  e4 {[%clk 0:00:42]} 35. Qh8+ {[%clk 0:00:32]}  Kf7 {[%clk 0:00:43]} 36. Kb2 {[%clk 0:00:31]}  a5 {[%clk 0:00:40]} 37. h5 {[%clk 0:00:30]}  Qf6+ {[%clk 0:00:33]} 38. Qxf6+ {[%clk 0:00:27]}  Kxf6 {[%clk 0:00:34]} 39. Kc3 {[%clk 0:00:10]}  Kg5 {[%clk 0:00:33]} 40. g4 {[%clk 0:00:09]}  e3 {[%clk 0:00:25]} 41. f3 {[%clk 0:00:02]}  fxg4 {[%clk 0:00:18]} 42. fxg4 {[%clk 0:00:03]}  Kxg4 {[%clk 0:00:19]} 43. h6 {[%clk 0:00:03]}  Kf3 {[%clk 0:00:19]} 44. h7 {[%clk 0:00:03]}  e2 {[%clk 0:00:19]} 45. h8=Q {[%clk 0:00:04]}  e1=Q+ {[%clk 0:00:19]} 46. Kb2 {[%clk 0:00:05]}  Qe4 {[%clk 0:00:13]} 47. Qh1+ {[%clk 0:00:04]}  Kf4 {[%clk 0:00:13]} 48. Qh4+ {[%clk 0:00:04]}  Kf3 {[%clk 0:00:10]} 49. Qh5+ {[%clk 0:00:03]}  Ke3 {[%clk 0:00:08]} 50. Qg5+ {[%clk 0:00:03]}  Ke2 {[%clk 0:00:07]} 51. Qh5+ {[%clk 0:00:04]}  Ke1 {[%clk 0:00:06]} 52. Qh8 {[%clk 0:00:02]}  Ke2 {[%clk 0:00:04]} 53. Qc3 {[%clk 0:00:02]}  c5 {[%clk 0:00:03]} 54. Qg7 {[%clk 0:00:01]}  Qd4+ {[%clk 0:00:03]} 55. Qxd4 {[%clk 0:00:02]}  cxd4 {[%clk 0:00:04]} 56. Kc1 {[%clk 0:00:02]}  Ke1 {[%clk 0:00:04]} 57. a3 {[%clk 0:00:02]}  b5 {[%clk 0:00:04]} 58. a4 {[%clk 0:00:01]}  b4 {[%clk 0:00:04]} 59. c4 {[%clk 0:00:01]}  dxc3 {[%clk 0:00:04]} 60. Kc2 {[%clk 0:00:01]}  Ke2 {[%clk 0:00:05]} 61. Kc1 {[%clk 0:00:02]}  Kd3 {[%clk 0:00:06]} 62. Kb1 {[%clk 0:00:02]}  Kd2 {[%clk 0:00:06]} 0-1


[Site "https://www.chess.com"]

[Event "Titled Tuesday Blitz October 25 Early 2022"]
[White "Pultinevicius, Paulius"]
[Black "Peyrer, Konstantin"]
[WhiteFideId "12809390"]
[BlackFideId "1640879"]
[WhiteElo "2500"]
[BlackElo "2415"]
[Result "1-0"]
[Round "04"]
[TimeControl "180+1"]
[Date "2022.10.25"]
[WhiteClock "0:00:55"]
[BlackClock "0:00:54"]

1. d4 {[%clk 0:03:00]}  Nf6 {[%clk 0:02:58]} 2. c4 {[%clk 0:03:00]}  g6 {[%clk 0:02:55]} 3. Nc3 {[%clk 0:03:00]}  Bg7 {[%clk 0:02:56]} 4. e4 {[%clk 0:03:00]}  d6 {[%clk 0:02:56]} 5. Nf3 {[%clk 0:03:00]}  O-O {[%clk 0:02:56]} 6. Be2 {[%clk 0:03:01]}  c5 {[%clk 0:02:56]} 7. O-O {[%clk 0:02:58]}  cxd4 {[%clk 0:02:56]} 8. Nxd4 {[%clk 0:02:59]}  Nc6 {[%clk 0:02:56]} 9. Be3 {[%clk 0:02:59]}  Bd7 {[%clk 0:02:56]} 10. f3 {[%clk 0:02:57]}  Qa5 {[%clk 0:02:55]} 11. Nb3 {[%clk 0:02:48]}  Qd8 {[%clk 0:02:48]} 12. Rc1 {[%clk 0:02:47]}  a6 {[%clk 0:02:44]} 13. Qd2 {[%clk 0:02:47]}  Na5 {[%clk 0:02:40]} 14. Nd4 {[%clk 0:02:37]}  Rc8 {[%clk 0:02:37]} 15. b3 {[%clk 0:02:35]}  Nc6 {[%clk 0:02:36]} 16. Rfd1 {[%clk 0:02:29]}  Nxd4 {[%clk 0:02:34]} 17. Bxd4 {[%clk 0:02:28]}  Bc6 {[%clk 0:02:34]} 18. b4 {[%clk 0:02:20]}  Bd7 {[%clk 0:02:23]} 19. Kh1 {[%clk 0:02:08]}  Be6 {[%clk 0:02:22]} 20. Nd5 {[%clk 0:02:03]}  Bxd5 {[%clk 0:02:22]} 21. cxd5 {[%clk 0:01:58]}  Nd7 {[%clk 0:02:22]} 22. Rxc8 {[%clk 0:01:52]}  Qxc8 {[%clk 0:02:23]} 23. Rc1 {[%clk 0:01:52]}  Qb8 {[%clk 0:02:16]} 24. Bxg7 {[%clk 0:01:52]}  Kxg7 {[%clk 0:02:17]} 25. Qc3+ {[%clk 0:01:52]}  Kg8 {[%clk 0:02:15]} 26. Qc7 {[%clk 0:01:51]}  Ne5 {[%clk 0:02:14]} 27. f4 {[%clk 0:01:35]}  Nc6 {[%clk 0:02:06]} 28. Qxb8 {[%clk 0:01:35]}  Nxb8 {[%clk 0:02:06]} 29. Rc7 {[%clk 0:01:35]}  e6 {[%clk 0:02:07]} 30. Bc4 {[%clk 0:01:28]}  exd5 {[%clk 0:02:02]} 31. Bxd5 {[%clk 0:01:27]}  Nc6 {[%clk 0:02:02]} 32. Rxb7 {[%clk 0:01:26]}  Nd4 {[%clk 0:02:02]} 33. Rd7 {[%clk 0:01:12]}  h5 {[%clk 0:01:30]} 34. h4 {[%clk 0:01:12]}  Ne2 {[%clk 0:01:27]} 35. Rxd6 {[%clk 0:01:06]}  Nxf4 {[%clk 0:01:19]} 36. Rxa6 {[%clk 0:01:04]}  Nxd5 {[%clk 0:01:12]} 37. exd5 {[%clk 0:01:05]}  Re8 {[%clk 0:01:12]} 38. b5 {[%clk 0:01:03]}  Re4 {[%clk 0:01:10]} 39. b6 {[%clk 0:01:02]}  Rxh4+ {[%clk 0:01:09]} 40. Kg1 {[%clk 0:01:03]}  Kg7 {[%clk 0:01:01]} 41. a4 {[%clk 0:01:00]}  Rb4 {[%clk 0:01:01]} 42. a5 {[%clk 0:01:00]}  Rb5 {[%clk 0:00:55]} 43. Ra7 {[%clk 0:00:57]}  Kf6 {[%clk 0:00:54]} 44. b7 {[%clk 0:00:56]}  Ke5 {[%clk 0:00:54]} 45. a6 {[%clk 0:00:55]}  Kxd5 {[%clk 0:00:54]} 46. Ra8 {[%clk 0:00:55]} 1-0


[Site "https://www.chess.com"]

[Event "Titled Tuesday Blitz October 25 Early 2022"]
[White "Wagner, Dennis"]
[Black "Shankland, Sam"]
[WhiteFideId "24650684"]
[BlackFideId "2004887"]
[WhiteElo "2470"]
[BlackElo "2612"]
[Result "0-1"]
[Round "04"]
[TimeControl "180+1"]
[Date "2022.10.25"]
[WhiteClock "0:00:01"]
[BlackClock "0:00:46"]

1. e4 {[%clk 0:03:00]}  c5 {[%clk 0:02:59]} 2. Nf3 {[%clk 0:03:01]}  d6 {[%clk 0:03:00]} 3. Bb5+ {[%clk 0:03:01]}  Bd7 {[%clk 0:02:59]} 4. c4 {[%clk 0:03:00]}  Nf6 {[%clk 0:02:59]} 5. Nc3 {[%clk 0:03:00]}  g6 {[%clk 0:02:59]} 6. d4 {[%clk 0:02:59]}  cxd4 {[%clk 0:02:58]} 7. Nxd4 {[%clk 0:03:00]}  Bg7 {[%clk 0:02:59]} 8. O-O {[%clk 0:03:01]}  O-O {[%clk 0:02:59]} 9. Bxd7 {[%clk 0:03:01]}  Nbxd7 {[%clk 0:02:58]} 10. Be3 {[%clk 0:03:00]}  a6 {[%clk 0:02:53]} 11. b3 {[%clk 0:02:57]}  Qa5 {[%clk 0:02:52]} 12. Rc1 {[%clk 0:02:53]}  Rfc8 {[%clk 0:02:52]} 13. Qe2 {[%clk 0:02:13]}  Ne5 {[%clk 0:02:31]} 14. h3 {[%clk 0:02:08]}  e6 {[%clk 0:02:24]} 15. f4 {[%clk 0:02:01]}  Nc6 {[%clk 0:02:23]} 16. Rfd1 {[%clk 0:01:34]}  Rab8 {[%clk 0:02:16]} 17. Nxc6 {[%clk 0:01:14]}  Rxc6 {[%clk 0:02:15]} 18. a4 {[%clk 0:00:54]}  b5 {[%clk 0:02:05]} 19. axb5 {[%clk 0:00:34]}  axb5 {[%clk 0:02:05]} 20. Nxb5 {[%clk 0:00:22]}  Nxe4 {[%clk 0:02:04]} 21. Bd4 {[%clk 0:00:21]}  d5 {[%clk 0:01:43]} 22. Bxg7 {[%clk 0:00:19]}  Kxg7 {[%clk 0:01:42]} 23. Nd4 {[%clk 0:00:12]}  Rcc8 {[%clk 0:01:37]} 24. cxd5 {[%clk 0:00:12]}  Rxc1 {[%clk 0:01:36]} 25. Rxc1 {[%clk 0:00:12]}  Qxd5 {[%clk 0:01:36]} 26. Qb2 {[%clk 0:00:09]}  Nf6 {[%clk 0:01:30]} 27. b4 {[%clk 0:00:04]}  e5 {[%clk 0:01:16]} 28. fxe5 {[%clk 0:00:04]}  Qxe5 {[%clk 0:01:16]} 29. b5 {[%clk 0:00:04]}  Rd8 {[%clk 0:01:16]} 30. Rd1 {[%clk 0:00:02]}  Qc5 {[%clk 0:01:09]} 31. b6 {[%clk 0:00:01]}  Rb8 {[%clk 0:01:04]} 32. b7 {[%clk 0:00:01]}  Ne4 {[%clk 0:00:57]} 33. Kh1 {[%clk 0:00:01]}  Kh6 {[%clk 0:00:46]} 0-1


[Site "https://www.chess.com"]

[Event "Titled Tuesday Blitz October 25 Early 2022"]
[White "Zhigalko, Sergei"]
[Black "Tokhirjonova, Gulrukhbegim"]
[WhiteFideId "13502956"]
[BlackFideId "14203626"]
[WhiteElo "2662"]
[BlackElo "2236"]
[Result "1-0"]
[Round "04"]
[TimeControl "180+1"]
[Date "2022.10.25"]
[WhiteClock "0:00:23"]
[BlackClock "0:01:04"]

1. e4 {[%clk 0:03:00]}  e5 {[%clk 0:03:00]} 2. Nf3 {[%clk 0:02:56]}  Nc6 {[%clk 0:03:00]} 3. Bc4 {[%clk 0:02:53]}  Nf6 {[%clk 0:03:00]} 4. d3 {[%clk 0:02:53]}  h6 {[%clk 0:02:59]} 5. O-O {[%clk 0:02:36]}  d6 {[%clk 0:02:59]} 6. c3 {[%clk 0:02:36]}  g5 {[%clk 0:02:58]} 7. Re1 {[%clk 0:02:28]}  Bg7 {[%clk 0:02:58]} 8. a4 {[%clk 0:01:38]}  O-O {[%clk 0:02:57]} 9. Nfd2 {[%clk 0:01:37]}  Ne7 {[%clk 0:02:55]} 10. Nf1 {[%clk 0:01:35]}  Ng6 {[%clk 0:02:55]} 11. Ng3 {[%clk 0:01:31]}  c6 {[%clk 0:02:46]} 12. Ba2 {[%clk 0:01:19]}  Kh8 {[%clk 0:02:44]} 13. Be3 {[%clk 0:01:17]}  Nf4 {[%clk 0:02:40]} 14. d4 {[%clk 0:01:14]}  Ng4 {[%clk 0:02:38]} 15. Nd2 {[%clk 0:01:10]}  Nd3 {[%clk 0:02:35]} 16. Rf1 {[%clk 0:00:56]}  Be6 {[%clk 0:02:09]} 17. Bxe6 {[%clk 0:00:55]}  Nxe3 {[%clk 0:02:06]} 18. fxe3 {[%clk 0:00:52]}  fxe6 {[%clk 0:02:07]} 19. Qc2 {[%clk 0:00:43]}  exd4 {[%clk 0:01:47]} 20. Qxd3 {[%clk 0:00:38]}  dxc3 {[%clk 0:01:47]} 21. bxc3 {[%clk 0:00:36]}  Qb6 {[%clk 0:01:34]} 22. Nc4 {[%clk 0:00:29]}  Qc5 {[%clk 0:01:34]} 23. Nxd6 {[%clk 0:00:24]}  Bxc3 {[%clk 0:01:05]} 24. Rac1 {[%clk 0:00:23]}  Rxf1+ {[%clk 0:01:04]} 25. Nxf1 {[%clk 0:00:23]} 1-0


[Site "https://www.chess.com"]

[Event "Titled Tuesday Blitz October 25 Early 2022"]
[White "Zou, Chen"]
[Black "Lawson, Eric"]
[WhiteFideId "8610959"]
[BlackFideId "2604116"]
[WhiteElo "2325"]
[BlackElo "2551"]
[Result "1/2-1/2"]
[Round "04"]
[TimeControl "180+1"]
[Date "2022.10.25"]
[WhiteClock "0:00:34"]
[BlackClock "0:00:48"]

1. d4 {[%clk 0:03:00]}  d5 {[%clk 0:02:56]} 2. c4 {[%clk 0:03:00]}  c6 {[%clk 0:02:57]} 3. Nf3 {[%clk 0:03:00]}  Nf6 {[%clk 0:02:57]} 4. e3 {[%clk 0:03:01]}  e6 {[%clk 0:02:56]} 5. Nc3 {[%clk 0:03:01]}  Nbd7 {[%clk 0:02:56]} 6. Qc2 {[%clk 0:03:00]}  Bd6 {[%clk 0:02:56]} 7. Bd3 {[%clk 0:02:59]}  O-O {[%clk 0:02:42]} 8. O-O {[%clk 0:02:58]}  b6 {[%clk 0:02:35]} 9. b3 {[%clk 0:02:56]}  Bb7 {[%clk 0:02:35]} 10. Bb2 {[%clk 0:02:56]}  Qe7 {[%clk 0:02:35]} 11. Rad1 {[%clk 0:02:57]}  Rad8 {[%clk 0:02:33]} 12. Rfe1 {[%clk 0:02:57]}  Rfe8 {[%clk 0:02:33]} 13. e4 {[%clk 0:02:56]}  dxe4 {[%clk 0:02:28]} 14. Nxe4 {[%clk 0:02:57]}  Nxe4 {[%clk 0:02:28]} 15. Bxe4 {[%clk 0:02:58]}  Nf6 {[%clk 0:02:28]} 16. Bd3 {[%clk 0:02:58]}  c5 {[%clk 0:02:24]} 17. dxc5 {[%clk 0:02:43]}  Bxc5 {[%clk 0:02:20]} 18. Ne5 {[%clk 0:02:11]}  Bb4 {[%clk 0:02:10]} 19. Bc3 {[%clk 0:02:07]}  Bxc3 {[%clk 0:01:51]} 20. Qxc3 {[%clk 0:02:07]}  Nd7 {[%clk 0:01:42]} 21. Ng4 {[%clk 0:01:39]}  h5 {[%clk 0:01:28]} 22. Ne3 {[%clk 0:01:38]}  Qg5 {[%clk 0:01:25]} 23. Bf1 {[%clk 0:01:36]}  h4 {[%clk 0:01:20]} 24. h3 {[%clk 0:01:36]}  Nf6 {[%clk 0:01:15]} 25. Rxd8 {[%clk 0:01:06]}  Rxd8 {[%clk 0:01:16]} 26. Rd1 {[%clk 0:01:07]}  Rxd1 {[%clk 0:01:14]} 27. Nxd1 {[%clk 0:01:08]}  Nh5 {[%clk 0:01:05]} 28. Ne3 {[%clk 0:00:59]}  Nf4 {[%clk 0:01:04]} 29. Kh2 {[%clk 0:01:00]}  Qc5 {[%clk 0:00:56]} 30. b4 {[%clk 0:00:54]}  Qd6 {[%clk 0:00:54]} 31. Kg1 {[%clk 0:00:52]}  Qc6 {[%clk 0:00:49]} 32. Kh2 {[%clk 0:00:47]}  Qc7 {[%clk 0:00:47]} 33. Kg1 {[%clk 0:00:45]}  Qc6 {[%clk 0:00:47]} 34. Kh2 {[%clk 0:00:43]}  Qc7 {[%clk 0:00:47]} 35. Kg1 {[%clk 0:00:34]}  Qc6 {[%clk 0:00:48]} 1/2-1/2


[Site "https://www.chess.com"]